bitfinex/quotes_ETHUSD_20240922
["timestamp","ask_amount","ask_price","bid_price","bid_amount"]
[1727046705892,9.10398398,2583.3,2583.2,0.0378279]
[1727046706060,7.48498569,2583.3,2583.2,0.0378279]
[1727046706256,9.10407142,2583.3,2583.2,0.0378279]
[1727046707402,12.24933135,2583.3,2583.2,0.0378279]
[1727046707689,10.63024562,2583.3,2583.2,0.0378279]
[1727046708296,10.65330116,2583.3,2583.2,0.0378279]
[1727046708901,11.20306452,2583.3,2583.2,0.0378279]
[1727046709114,4.42206,2582.6,2582.5,0.0378279]
[1727046709403,3.87319,2581.9,2581.7,1.4369279]
[1727046710196,4.42326,2581.8,2581.7,0.0378279]
[1727046710404,6.98454781,2581.8,2581.7,0.0378279]
[1727046710616,3.87319,2581.9,2581.7,0.0378279]
[1727046711307,0.80856705,2582.4,2581.8,1.3991]
[1727046711529,6.43370781,2582.4,2581.8,5.27225]
[1727046711660,2.56128781,2582.4,2581.9,3.87306]
[1727046711864,2.56128781,2582.4,2582.0,0.527216]
[1727046712378,3.87234,2582.5,2582.0,0.527216]
[1727046712966,3.872,2582.7,2582.0,4.400176]
[1727046713609,0.55,2582.8,2582.1,3.8728]
[1727046713982,0.55,2582.8,2582.2,1.3991]
[1727046714410,4.42177,2582.8,2582.2,1.3991]
[1727046714821,7.02128358,2582.9,2582.2,5.8516116]
[1727046715341,2.4363,2583.2,2582.6,3.87193]
[1727046715618,0.80856705,2583.4,2582.7,5.27092]
[1727046715619,3.8709,2583.4,2582.7,5.27092]
[1727046715817,10.26523063,2583.5,2582.7,5.27092]
[1727046716001,7.11564705,2583.5,2582.8,3.87174]
[1727046716213,0.80856705,2583.6,2582.9,4.26334808]
[1727046716403,4.67904705,2583.7,2583.0,3.87145]
[1727046716883,3.87048,2583.7,2583.1,1.3991]
[1727046717229,10.26481063,2583.8,2583.1,1.3991]
[1727046717515,3.87056,2583.7,2583.1,1.3991]
[1727046717682,10.26481063,2583.8,2583.1,1.3991]
[1727046717683,3.87056,2583.6,2583.1,1.3991]
[1727046718191,9.45624358,2583.8,2583.1,1.3991]
[1727046718192,7.11522705,2583.8,2583.1,5.83649781]
[1727046718398,0.80856705,2583.9,2583.2,3.87106]
[1727046718584,6.30634,2584.0,2583.2,3.87106]
[1727046718781,10.17643,2584.0,2583.2,3.87106]
[1727046719092,3.87012,2583.9,2583.2,3.87106]
[1727046719336,3.87012,2583.9,2583.2,4.84181578]
[1727046719684,6.30634,2584.0,2583.3,3.87098]
[1727046719918,0.55,2583.9,2583.3,3.87098]
[1727046720126,4.42021,2583.9,2583.2,4.84189578]
[1727046720414,3.87027,2583.8,2583.2,0.97075578]
[1727046720641,7.02042358,2583.5,2583.1,1.3991]
[1727046720840,0.55,2583.4,2582.8,1.3991]
[1727046721022,0.55,2583.4,2582.8,5.27085]
[1727046721409,4.42087,2583.4,2582.8,5.27085]
[1727046721618,3.87103,2583.3,2582.8,1.3991]
[1727046722027,7.74214,2583.3,2582.8,1.3991]
[1727046722238,3.87103,2583.3,2582.8,1.3991]
[1727046723326,4.42141,2583.1,2582.5,1.3991]
[1727046723907,3.8715,2583.0,2582.5,1.3991]
[1727046725634,3.8715,2583.0,2582.5,5.27131]
[1727046725848,0.55,2583.1,2582.5,5.27121]
[1727046726206,7.82910063,2583.4,2582.5,1.3991]
[1727046726442,3.87117,2583.2,2582.6,3.87197]
[1727046726940,3.87095,2583.4,2582.5,1.3991]
[1727046727242,6.30692,2583.6,2582.8,3.87174]
[1727046727551,1.21285058,2583.8,2582.8,3.87174]
[1727046727552,0.80856705,2583.8,2583.0,3.87134]
[1727046727836,3.87066,2583.6,2583.1,1.3991]
[1727046728262,4.67892705,2583.8,2583.1,1.3991]
[1727046728263,3.87036,2583.8,2583.1,1.3991]
[1727046728466,3.87043,2583.7,2583.2,3.87114]
[1727046728625,3.87035,2583.8,2583.2,3.87114]
[1727046728830,3.87043,2583.7,2583.2,3.87114]
[1727046729724,4.67891705,2583.8,2583.2,3.87114]
[1727046729934,0.55,2583.7,2583.1,1.3991]
[1727046730347,0.55,2583.7,2583.1,5.27033]
[1727046730348,4.42053,2583.7,2583.1,5.27033]
[1727046731273,3.87057,2583.6,2583.1,5.27033]
[1727046731575,7.74123,2583.6,2583.1,1.3991]
[1727046731736,7.74125,2583.6,2583.1,1.3991]
[1727046731947,3.87057,2583.6,2583.1,1.3991]
[1727046732267,3.87073,2583.5,2583.1,1.3991]
[1727046732567,3.87094,2583.4,2582.8,5.27077]
[1727046732923,3.87127,2583.2,2582.8,1.3991]
[1727046733127,4.67971705,2583.3,2582.8,1.3991]
[1727046733367,3.87115,2583.3,2582.8,1.3991]
[1727046733927,3.87115,2583.3,2582.8,5.27078]
[1727046734323,3.12346705,2583.4,2582.8,5.27078]
[1727046734324,0.80856705,2583.4,2582.9,3.87157]
[1727046734524,4.67950705,2583.4,2582.8,5.27078]
[1727046734769,0.80856705,2583.4,2582.9,3.87151]
[1727046735061,0.80856705,2583.5,2583.1,3.87123]
[1727046735223,0.80856705,2583.5,2583.1,3.87122]
[1727046735963,0.80856705,2583.5,2582.9,7.74303]
[1727046735964,4.67936705,2583.5,2582.9,7.74303]
[1727046736165,4.67943705,2583.4,2582.8,1.3991]
[1727046736334,4.67943705,2583.4,2582.8,5.27075]
[1727046736528,0.80856705,2583.4,2582.9,3.87152]
[1727046736741,0.80856705,2583.4,2582.9,3.87147]
[1727046737274,0.80856705,2583.4,2582.8,1.3991]
[1727046737433,0.80856705,2583.5,2583.2,3.87108]
[1727046737629,0.80856705,2583.5,2583.3,1.3991]
[1727046737834,0.80856705,2583.4,2583.3,1.3991]
[1727046738376,0.80856705,2583.5,2583.3,1.3991]
[1727046739827,0.80856705,2583.5,2583.4,3.87086]
[1727046740034,3.0,2584.3,2583.8,1.3991]
[1727046740035,0.80856705,2584.1,2583.8,1.3991]
[1727046740337,0.80856705,2584.3,2584.2,3.86966]
[1727046740540,0.80856705,2584.4,2584.2,3.86966]
[1727046740847,0.80856705,2584.3,2584.0,3.86996]
[1727046741172,3.86956,2584.3,2583.8,5.26935]
[1727046741468,0.80856705,2584.3,2583.8,5.26935]
[1727046741763,1.01070881,2584.4,2584.0,3.86995]
[1727046742070,0.80856705,2584.4,2584.0,3.86995]
[1727046742244,0.80856705,2584.5,2584.0,3.86995]
[1727046742571,4.67804705,2584.4,2583.8,5.26927]
[1727046742861,4.67817705,2584.3,2583.8,5.26927]
[1727046743476,3.86961,2584.3,2583.8,9.13946]
[1727046743657,0.80856705,2584.3,2583.8,5.26927]
[1727046743980,0.80856705,2584.5,2584.2,3.86958]
[1727046744263,0.80856705,2584.6,2584.2,7.73917]
[1727046744465,0.80856705,2584.6,2584.2,3.86958]
[1727046744629,0.80856705,2584.7,2584.4,3.86929]
[1727046744829,0.80856705,2584.7,2584.3,1.3991]
[1727046745372,4.71525495,2584.8,2584.3,1.3991]
[1727046745585,3.86892,2584.7,2584.3,1.3991]
[1727046745869,3.86908,2584.6,2584.1,3.86979]
[1727046746772,7.86483853,2584.8,2584.0,5.26892]
[1727046746773,11.73375853,2584.8,2584.2,3.86964]
[1727046746973,8.58417495,2584.8,2584.2,3.86964]
[1727046747130,3.86894,2584.7,2584.2,3.86964]
[1727046747331,3.86908,2584.6,2584.1,3.86981]
[1727046747565,3.86908,2584.6,2584.0,1.3991]
[1727046747763,3.86939,2584.4,2584.0,1.3991]
[1727046747927,7.7389,2584.4,2584.0,1.3991]
[1727046748131,3.86956,2584.3,2583.8,9.13939]
[1727046748377,3.86956,2584.3,2583.8,5.26922]
[1727046749040,2.55546747,2584.4,2583.9,3.87003]
[1727046749247,6.17176,2584.5,2583.9,3.87003]
[1727046749755,6.17176,2584.5,2583.8,5.26922]
[1727046749756,3.86954,2584.3,2583.8,5.26922]
[1727046749967,3.86967,2584.2,2583.8,5.26922]
[1727046750268,3.86967,2584.2,2583.8,1.3991]
[1727046751133,2.55546747,2584.3,2583.8,1.3991]
[1727046751134,2.55546747,2584.3,2583.8,5.26936]
[1727046751333,6.42499747,2584.3,2583.8,5.26936]
[1727046752246,3.86953,2584.3,2583.8,5.26936]
[1727046752565,3.86984,2584.1,2583.8,1.3991]
[1727046752739,3.86984,2584.1,2583.1,3.87128]
[1727046752740,3.86984,2584.1,2583.5,1.3991]
[1727046752947,3.87034,2583.8,2583.3,3.871]
[1727046753146,0.387034,2583.7,2583.3,3.871]
[1727046753350,6.42580747,2583.8,2583.3,3.871]
[1727046753545,3.87042,2583.7,2583.2,5.27023]
[1727046753872,7.74107,2583.7,2583.2,1.3991]
[1727046754074,3.87059,2583.6,2583.2,1.3991]
[1727046756480,3.87087,2583.4,2583.0,1.3991]
[1727046756680,3.87112,2583.3,2582.8,3.87166]
[1727046756982,3.87112,2583.3,2582.6,3.87195]
[1727046756983,2.3402,2583.5,2582.6,3.87205]
[1727046757285,3.87063,2583.6,2583.0,3.87131]
[1727046757501,4.67919705,2583.6,2583.0,3.87131]
[1727046757775,3.8708,2583.5,2583.0,3.87131]
[1727046759274,4.67919705,2583.6,2583.1,3.8713]
[1727046760871,0.80856705,2583.5,2583.1,3.8713]
[1727046761047,4.67919705,2583.6,2583.1,3.8713]
[1727046761245,0.80856705,2583.5,2583.1,3.8713]
[1727046762158,0.80856705,2583.5,2583.2,1.3991]
[1727046764088,0.80856705,2583.7,2583.3,1.3991]
[1727046764383,0.80856705,2583.9,2583.6,3.87056]
[1727046764534,0.80856705,2584.0,2583.6,3.87056]
[1727046765667,0.80856705,2584.0,2583.7,3.87041]
[1727046766010,0.80856705,2584.0,2583.8,1.3991]
[1727046766167,0.80856705,2584.1,2583.8,5.26928]
[1727046766712,0.80856705,2584.1,2583.9,3.87011]
[1727046766877,0.80856705,2584.2,2583.9,3.87011]
[1727046767069,0.80856705,2584.2,2583.8,6.18324]
[1727046767070,0.80856705,2584.2,2583.8,10.05342]
[1727046767272,0.80856705,2584.2,2583.3,6.87096]
[1727046767273,0.80856705,2584.2,2583.6,3.87048]
[1727046767503,0.80856705,2584.0,2583.6,3.87048]
[1727046767719,0.80856705,2584.0,2583.5,1.3991]
[1727046767720,3.22606705,2584.0,2583.5,1.3991]
[1727046767899,4.67886705,2583.8,2583.3,5.27003]
[1727046768065,0.80856705,2583.8,2583.3,1.3991]
[1727046768507,0.80856705,2583.8,2583.4,7.74151]
[1727046768805,4.67876705,2583.9,2583.4,3.87073]
[1727046769012,0.80856705,2583.8,2583.4,3.87073]
[1727046770814,0.80856705,2583.8,2583.5,3.8707]
[1727046770975,0.80856705,2583.8,2583.3,1.3991]
[1727046771178,0.80856705,2583.9,2583.6,3.87048]
[1727046771671,4.67868705,2583.9,2583.4,3.87076]
[1727046771872,3.87057,2583.6,2583.2,3.87107]
[1727046772308,4.67913705,2583.6,2583.2,3.87107]
[1727046772517,0.80856705,2583.6,2583.2,3.87107]
[1727046772903,4.67925705,2583.6,2583.0,12.14188]
[1727046773070,4.67925705,2583.6,2583.0,8.27048]
[1727046773280,4.67929705,2583.5,2583.0,8.27048]
[1727046774306,3.87092,2583.4,2583.0,1.3991]
[1727046774603,3.87117,2583.2,2582.7,5.27096]
[1727046775617,3.22606705,2583.3,2582.8,6.87171]
[1727046775922,7.09710705,2583.3,2582.8,6.87171]
[1727046776821,0.80856705,2583.2,2582.8,6.87171]
[1727046777114,7.09710705,2583.3,2582.8,6.87171]
[1727046777517,3.22606705,2583.3,2582.8,6.87171]
[1727046777906,7.09716705,2583.3,2582.8,3.0]
[1727046778217,0.80856705,2583.3,2582.8,6.87175]
[1727046778379,4.67958705,2583.3,2582.8,6.87175]
[1727046778819,0.80856705,2583.3,2582.8,6.87175]
[1727046779793,4.67958705,2583.3,2582.8,6.87175]
[1727046780091,0.80856705,2583.3,2582.8,6.87175]
[1727046780298,0.80856705,2583.3,2582.9,3.8716]
[1727046780503,3.87119,2583.2,2582.8,3.0]
[1727046780711,0.80856705,2583.3,2582.8,3.0]
[1727046781517,2.55747227,2583.1,2582.7,1.3991]
[1727046781726,3.87184,2582.8,2582.4,1.3991]
[1727046782089,4.68040705,2582.8,2582.4,1.3991]
[1727046782287,3.87193,2582.7,2582.4,1.3991]
[1727046782597,3.87184,2582.8,2582.4,1.3991]
[1727046783611,3.87184,2582.8,2581.7,0.0378279]
[1727046783612,10.09188,2582.6,2582.2,1.3991]
[1727046783933,3.87225,2582.5,2582.0,5.272]
[1727046784218,10.90044705,2582.6,2582.0,5.272]
[1727046784657,3.87236,2582.4,2582.0,1.3991]
[1727046784815,3.87236,2582.4,2581.8,3.87323]
[1727046785011,3.87236,2582.4,2581.7,3.9111679]
[1727046785012,3.87266,2582.2,2581.7,5.3102679]
[1727046785212,3.87266,2582.2,2581.7,1.4369279]
[1727046785440,4.68122705,2582.2,2581.7,1.4369279]
[1727046785650,6.43029227,2582.1,2581.7,1.4369279]
[1727046785952,6.43029227,2582.1,2581.7,0.0378279]
[1727046786752,6.43003227,2582.3,2581.8,3.87326]
[1727046787109,3.87268,2582.2,2581.7,3.9110979]
[1727046787761,6.11792285,2582.5,2582.0,1.3991]
[1727046787762,3.15616705,2582.5,2582.0,1.3991]
[1727046788059,4.68055705,2582.7,2582.2,3.87263]
[1727046788429,0.80856705,2582.7,2582.2,3.87263]
[1727046788756,4.1756192,2582.9,2582.2,3.87263]
[1727046788757,0.80856705,2582.9,2582.5,3.87208]
[1727046788919,0.80856705,2583.0,2582.5,3.87208]
[1727046789127,3.15616705,2583.1,2582.6,3.87192]
[1727046789817,3.15616705,2583.1,2582.7,3.8719]
[1727046790017,0.80856705,2583.2,2582.7,3.8719]
[1727046790219,7.83666693,2583.4,2582.8,0.38719]
[1727046790220,3.15616705,2583.4,2582.8,0.38719]
[1727046790467,3.15616705,2583.4,2582.5,4.3991]
[1727046790777,4.67939705,2583.5,2582.8,3.87164]
[1727046790976,4.67939705,2583.5,2582.9,1.3991]
[1727046791130,3.87088,2583.4,2582.9,1.3991]
[1727046791943,4.67944705,2583.4,2582.9,1.3991]
[1727046792877,4.67944705,2583.4,2582.7,1.3991]
[1727046792878,6.42858227,2583.3,2582.7,1.3991]
[1727046793046,2.3476,2583.2,2582.7,1.3991]
[1727046793375,0.80856705,2583.4,2582.9,3.87148]
[1727046793542,4.67926705,2583.6,2582.9,3.87148]
[1727046793875,4.67926705,2583.6,2583.1,3.87131]
[1727046794535,0.80856705,2583.6,2583.1,3.87121]
[1727046794868,0.80856705,2583.6,2583.4,3.87086]
[1727046795530,0.80856705,2583.6,2583.2,5.27015]
[1727046796048,0.80856705,2583.6,2583.3,3.87093]
[1727046796765,0.80856705,2583.6,2583.3,7.74185]
[1727046797179,0.80856705,2583.6,2583.4,3.87085]
[1727046797484,3.96574693,2583.9,2583.5,3.8706]
[1727046797485,0.80856705,2583.8,2583.5,3.8706]
[1727046797636,0.80856705,2583.9,2583.7,1.3991]
[1727046798042,3.16036705,2583.9,2583.4,5.26985]
[1727046798247,7.03055705,2583.9,2583.4,3.87075]
[1727046798450,0.80856705,2583.8,2583.2,8.27017]
[1727046798680,2.55747227,2584.0,2583.2,8.27017]
[1727046798681,0.80856705,2584.0,2583.6,3.87054]
[1727046798878,1.21285058,2584.1,2583.6,3.87054]
[1727046798879,0.80856705,2583.9,2583.6,3.87056]
[1727046799059,0.80856705,2584.0,2583.6,3.87056]
[1727046799248,0.80856705,2584.0,2583.6,7.74091]
[1727046799581,0.80856705,2584.0,2583.6,3.87044]
[1727046799733,0.80856705,2584.0,2583.6,7.74093]
[1727046799933,0.80856705,2584.0,2583.6,3.87044]
[1727046803585,0.80856705,2584.0,2583.8,3.87021]
[1727046803760,0.80856705,2584.2,2583.8,3.87021]
[1727046803952,0.80856705,2584.1,2583.8,3.87021]
[1727046804151,0.80856705,2584.2,2583.8,3.87021]
[1727046804450,0.80856705,2584.1,2583.8,3.87021]
[1727046805561,0.80856705,2584.2,2583.8,3.87017]
[1727046806197,0.80856705,2584.2,2583.9,3.87003]
[1727046806363,0.80856705,2584.3,2584.0,3.86985]
[1727046806560,0.80856705,2584.4,2584.0,3.86985]
[1727046806795,0.80856705,2584.3,2584.0,3.86985]
[1727046807154,0.80856705,2584.4,2584.0,3.86985]
[1727046808190,0.80856705,2584.4,2583.2,8.27017]
[1727046808191,3.87028,2583.8,2583.2,8.27017]
[1727046808370,6.42775227,2583.8,2583.2,5.27017]
[1727046808697,7.23667127,2583.8,2583.2,9.14121]
[1727046809158,7.23667127,2583.8,2583.3,3.87101]
[1727046809544,0.808929,2583.7,2583.2,5.27015]
[1727046809653,2.3518,2583.6,2583.0,5.27048]
[1727046809859,6.22242,2583.6,2583.0,9.14186]
[1727046810286,6.22242,2583.6,2583.1,3.87131]
[1727046811183,0.808929,2583.7,2583.3,3.87092]
[1727046811524,3.56465058,2583.9,2583.3,3.87092]
[1727046811525,0.808929,2583.8,2583.3,3.87092]
[1727046811667,0.808929,2583.8,2583.3,7.74184]
[1727046812156,0.808929,2583.8,2583.4,3.87086]
[1727046812358,3.160729,2583.9,2583.4,1.3991]
[1727046812681,3.160729,2583.9,2583.4,5.26996]
[1727046813257,0.808929,2583.8,2583.4,5.26996]
[1727046813458,3.160729,2583.9,2583.4,5.26996]
[1727046813694,0.808929,2583.8,2583.4,5.26996]
[1727046814066,3.160729,2583.9,2583.4,5.26996]
[1727046816068,3.160729,2583.9,2583.5,3.87069]
[1727046816408,5.08290058,2584.0,2583.7,3.8704]
[1727046816409,0.808929,2584.0,2583.7,3.8704]
[1727046816586,0.808929,2584.0,2583.5,3.87059]
[1727046816782,0.808929,2584.0,2583.7,3.87041]
[1727046816983,0.808929,2584.1,2583.7,3.87041]
[1727046818059,0.808929,2584.1,2583.7,3.87034]
[1727046819463,0.808929,2584.1,2583.7,3.87033]
[1727046819907,0.808929,2584.1,2583.7,7.74066]
[1727046820116,0.808929,2584.1,2583.8,3.87017]
[1727046820478,0.808929,2584.1,2583.6,3.87045]
[1727046820806,4.678849,2584.1,2583.6,3.87045]
[1727046822013,0.808929,2584.0,2583.7,3.87039]
[1727046822244,0.808929,2584.1,2583.7,3.87039]
[1727046822536,0.808929,2584.1,2583.7,3.87033]
[1727046822902,0.808929,2584.1,2583.8,3.87023]
[1727046823144,0.808929,2584.2,2583.9,3.87004]
[1727046823319,0.808929,2584.2,2583.8,3.87018]
[1727046823648,7.125229,2584.3,2583.8,3.87018]
[1727046824726,0.808929,2584.2,2583.8,3.87019]
[1727046824913,0.808929,2584.2,2583.8,4.644255]
[1727046825243,7.125229,2584.3,2583.8,4.644255]
[1727046828308,7.125229,2584.3,2583.8,3.87019]
[1727046828906,7.125229,2584.3,2583.4,5.26988]
[1727046828907,0.808929,2584.2,2583.9,3.87011]
[1727046829111,2.4467,2584.3,2583.8,3.87026]
[1727046829112,7.125159,2584.3,2583.8,3.87026]
[1727046830867,0.808929,2584.2,2583.8,3.87026]
[1727046831425,7.125159,2584.3,2583.8,3.87026]
[1727046831626,0.758929,2584.2,2583.8,4.644316]
[1727046832422,0.758929,2584.2,2583.5,3.8706]
[1727046832423,2.55747227,2584.0,2583.5,3.8706]
[1727046832623,3.77032285,2584.0,2583.7,3.87039]
[1727046833461,1.21285058,2583.9,2583.6,3.87055]
[1727046834264,1.21285058,2583.9,2583.7,3.87038]
[1727046834460,3.77032285,2584.0,2583.7,3.87038]
[1727046834764,1.21285058,2583.9,2583.7,3.87038]
[1727046834964,1.21285058,2583.8,2583.7,3.87038]
[1727046835462,1.61814693,2584.0,2583.7,3.87038]
[1727046835463,1.21285058,2583.9,2583.7,3.87038]
[1727046835666,1.21285058,2583.8,2583.7,3.87038]
[1727046838037,1.19304062,2583.8,2583.7,3.87038]
[1727046838237,1.2176898,2583.8,2583.7,3.87038]
[1727046839636,1.21818744,2583.8,2583.7,3.87038]
[1727046839836,1.19352782,2583.8,2583.7,3.87038]
[1727046840147,1.61814693,2583.9,2583.7,3.87038]
[1727046840459,1.61814693,2583.8,2583.7,3.87038]
[1727046840659,2.81167891,2583.8,2583.7,3.87038]
[1727046841072,1.19353198,2583.8,2583.7,3.87038]
[1727046841267,1.61814693,2583.9,2583.8,3.87026]
[1727046841848,2.81181444,2583.9,2583.8,3.87026]
[1727046842049,2.81830967,2583.9,2583.8,3.87026]
[1727046842244,1.19374049,2583.9,2583.7,3.87038]
[1727046842486,1.19374049,2583.9,2583.5,3.87063]
[1727046842487,1.62469384,2583.8,2583.5,3.87063]
[1727046842695,1.62469384,2583.8,2583.2,3.8711]
[1727046842696,1.62469384,2583.7,2583.3,3.87091]
[1727046842977,1.21885317,2583.4,2583.3,3.87091]
[1727046843391,1.21885317,2583.5,2583.4,3.87086]
[1727046843569,1.21885317,2583.6,2583.5,3.87071]
[1727046843743,1.21885317,2583.7,2583.6,3.87056]
[1727046844885,1.19357354,2583.7,2583.6,3.87056]
[1727046845071,2.8187111,2583.7,2583.6,3.87056]
[1727046845847,3.22468063,2583.7,2583.6,3.87056]
[1727046846046,2.03110709,2583.7,2583.3,3.87091]
[1727046846253,1.19357354,2583.8,2583.3,4.397911]
[1727046846254,0.81251333,2583.4,2583.3,4.397911]
[1727046850362,0.81251333,2583.5,2583.4,3.87086]
[1727046850758,1.21872554,2583.6,2583.5,3.87071]
[1727046851578,1.62502667,2583.6,2583.5,3.87071]
[1727046851886,1.21870497,2583.6,2583.5,3.87071]
[1727046852717,1.21870497,2583.6,2583.5,4.6975651]
[1727046853075,1.62502667,2583.7,2583.6,3.87056]
[1727046853899,2.81868999,2583.7,2583.6,3.87056]
[1727046854267,1.62502667,2583.7,2583.6,3.87056]
[1727046854656,2.81868999,2583.7,2583.6,3.87056]
[1727046855894,1.62502667,2583.7,2583.6,3.87056]
[1727046856459,1.62502667,2583.7,2583.6,4.26383433]
[1727046856783,1.21916062,2583.7,2583.6,4.26383433]
[1727046856960,1.21916062,2583.7,2583.5,3.87069]
[1727046856961,1.62502667,2583.7,2583.5,3.87069]
[1727046857163,1.2192357,2583.6,2583.5,10.74133]
[1727046857962,1.21932488,2583.6,2583.5,3.0]
[1727046858211,1.21932488,2583.6,2582.9,3.87153]
[1727046858212,3.87087,2583.4,2582.9,3.87153]
[1727046858391,3.87087,2583.4,2582.8,3.87165]
[1727046858392,0.81306953,2583.0,2582.8,3.87165]
[1727046858596,0.81306953,2582.9,2582.8,3.87165]
[1727046859405,0.81290905,2582.9,2582.8,6.87176]
[1727046859565,1.21961911,2583.0,2582.6,3.0]
[1727046859800,1.21961911,2582.7,2582.3,3.87239]
[1727046860002,0.81280252,2582.5,2582.3,8.1847463]
[1727046860304,0.81280252,2582.5,2582.4,3.87236]
[1727046860504,0.81280252,2582.6,2582.5,3.87221]
[1727046860749,1.21961911,2582.8,2582.5,3.87221]
[1727046860750,0.81280252,2582.7,2582.5,3.87221]
[1727046860902,0.81280252,2582.7,2582.6,3.0]
[1727046861105,1.21961911,2582.8,2582.6,3.0]
[1727046861415,0.81223445,2582.7,2582.6,3.0]
[1727046863354,0.81223445,2582.8,2582.6,3.0]
[1727046865527,0.81223445,2582.9,2582.6,3.0]
[1727046867718,3.87147,2583.0,2582.6,3.0]
[1727046867719,0.81223445,2583.0,2582.7,3.87188]
[1727046867917,0.81223445,2583.1,2582.8,3.87168]
[1727046870143,0.81223445,2583.1,2582.9,3.87153]
[1727046870447,3.58161911,2583.3,2582.9,3.87153]
[1727046870448,0.81223445,2583.2,2582.9,3.87152]
[1727046872279,0.81223445,2583.1,2582.9,3.87152]
[1727046872545,0.81223445,2583.2,2582.9,3.87152]
[1727046879661,0.81223445,2583.3,2583.1,3.87131]
[1727046879863,0.81223445,2583.3,2583.2,3.87116]
[1727046880079,1.21961911,2583.5,2583.3,3.87101]
[1727046880080,0.81223445,2583.5,2583.3,3.87101]
[1727046880259,0.81223445,2583.6,2583.3,4.645225]
[1727046880633,0.81223445,2583.6,2583.4,3.87079]
[1727046881347,0.81223445,2583.6,2583.5,5.26981]
[1727046881578,2.02592987,2584.0,2583.7,3.87031]
[1727046881579,0.81033229,2583.9,2583.7,3.87031]
[1727046881736,0.81033229,2583.8,2583.7,3.87031]
[1727046882056,0.81033229,2583.9,2583.7,4.784307]
[1727046882388,0.81033229,2583.9,2583.8,3.87026]
[1727046882599,0.81033229,2584.0,2583.9,3.87011]
[1727046882958,0.81033229,2584.0,2583.7,4.784287]
[1727046883463,0.81033229,2584.1,2583.7,4.784287]
[1727046883648,0.81033229,2584.1,2583.8,3.87016]
[1727046884754,0.81033229,2584.0,2583.8,3.87016]
[1727046885388,0.81033229,2584.0,2583.7,3.87029]
[1727046886656,0.81033229,2584.0,2583.7,7.74063]
[1727046887365,0.81033229,2584.0,2583.7,8.654603]
[1727046887748,0.81033229,2584.0,2583.7,4.784263]
[1727046887954,0.81033229,2584.0,2583.7,8.654593]
[1727046888790,0.81033229,2584.0,2583.7,4.784263]
[1727046889350,0.81033229,2584.0,2583.7,8.654603]
[1727046889557,0.81033229,2584.0,2583.8,0.8654603]
[1727046890197,0.81033229,2584.0,2583.8,4.7357203]
[1727046890600,0.81033229,2584.1,2583.8,4.7357203]
[1727046891080,0.81033229,2584.0,2583.8,4.7357203]
[1727046891275,5.08929911,2584.2,2583.9,3.87011]
[1727046891276,0.81033229,2584.1,2583.9,3.87011]
[1727046891519,0.81033229,2584.2,2584.1,3.86981]
[1727046891825,0.81033229,2584.2,2584.0,5.74259703]
[1727046892806,0.81033229,2584.2,2584.0,1.3991]
[1727046893114,2.55515683,2584.1,2584.0,1.3991]
[1727046893317,7.64458594,2584.1,2583.7,3.0]
[1727046893505,3.28059452,2584.0,2583.7,3.0]
[1727046896325,0.80989452,2584.0,2583.7,3.0]
[1727046896812,4.67970452,2584.1,2583.7,3.0]
[1727046898233,4.67970452,2584.1,2583.7,6.87041]
[1727046900857,3.87079,2583.5,2583.0,3.87143]
[1727046900990,2.55515683,2583.3,2582.9,3.87151]
[1727046901329,5.83570968,2583.3,2582.9,7.74303]
[1727046901493,5.83570968,2583.3,2582.9,8.657243]
[1727046902229,5.83570968,2583.3,2583.0,3.87145]
[1727046902526,5.83570968,2583.3,2582.9,4.785723]
[1727046902527,0.80985285,2583.3,2583.2,3.87116]
[1727046902730,0.80985285,2583.3,2583.2,5.27026]
[1727046902930,0.80985285,2583.3,2583.2,6.184403]
[1727046903391,1.21477928,2583.4,2583.2,6.184403]
[1727046903734,4.95255683,2583.9,2583.3,3.87101]
[1727046903735,8.82266683,2583.9,2583.3,3.87101]
[1727046903932,8.82266683,2583.9,2583.4,3.87084]
[1727046904432,8.82266683,2583.9,2583.4,7.74168]
[1727046904611,8.82266683,2583.9,2583.4,3.87084]
[1727046905060,2.3974,2583.9,2583.5,3.87061]
[1727046905265,8.82247683,2584.1,2583.5,3.87061]
[1727046905425,3.86999,2584.0,2583.5,3.87061]
[1727046905766,6.42528683,2583.9,2583.4,4.8763453]
[1727046905925,6.42528683,2583.9,2583.4,3.87083]
[1727046906123,2.3974,2583.6,2583.1,3.87121]
[1727046906371,2.3974,2583.6,2583.2,3.0]
[1727046906640,6.26798,2583.6,2583.2,3.0]
[1727046906949,2.55515683,2583.5,2583.2,3.0]
[1727046907763,10.13866,2583.6,2583.2,3.0]
[1727046908569,3.87079,2583.5,2583.2,3.0]
[1727046908727,2.55515683,2583.3,2582.8,5.27086]
[1727046908932,2.3974,2583.2,2582.7,3.87182]
[1727046909235,2.3974,2583.2,2582.8,3.87163]
[1727046909440,2.3974,2583.4,2583.0,3.87136]
[1727046909755,2.3974,2583.4,2583.0,5.27046]
[1727046911666,2.3974,2583.4,2583.0,9.14184]
[1727046911882,2.3974,2583.7,2583.0,1.3991]
[1727046912172,2.55515683,2584.0,2583.5,3.8706]
[1727046912173,2.3974,2584.0,2583.5,3.8706]
[1727046912335,2.3974,2584.0,2583.6,3.87054]
[1727046912902,2.55515683,2583.9,2583.5,4.25766]
[1727046914005,2.55515683,2583.7,2583.3,3.87091]
[1727046914509,3.20774656,2583.6,2583.3,3.87091]
[1727046916610,7.07831656,2583.6,2583.2,3.0]
[1727046917492,3.87074,2583.5,2583.2,3.0]
[1727046917782,6.14793,2583.3,2582.8,3.87176]
[1727046917992,6.42632683,2583.2,2582.7,3.87183]
[1727046918201,6.42632683,2583.2,2582.7,4.786134]
[1727046918906,6.42632683,2583.2,2582.8,3.0]
[1727046919085,6.14791,2583.3,2582.8,6.87175]
[1727046919409,0.81034656,2583.2,2582.8,6.87175]
[1727046919704,0.81034656,2583.1,2582.8,8.0375384]
[1727046921059,7.36342984,2583.3,2582.8,8.0375384]